fUST/lending_fUST_20240817
["ID","MTS","AMOUNT","RATE_DAILY","PERIOD"]
[335148098,1723890724890,-184.007484,0.00027397,7]
[335148099,1723890724900,-219.438987,0.00027397,7]
[335148100,1723890724910,-2950.430339,0.00027397,7]
[335148101,1723890724921,-184.00748,0.00027397,7]
[335148102,1723890724931,-2950.430339,0.00027397,7]
[335148103,1723890724941,-2950.430339,0.00027397,7]
[335148104,1723890724951,-2950.43034833,0.00027397,7]
[335148105,1723890724961,-151.0,0.00027397,7]
[335148106,1723890724973,-151.0,0.00027397,7]
[335148107,1723890724983,-151.0,0.00027397,7]
[335148108,1723890724993,-151.0,0.00027397,7]
[335148109,1723890725003,-151.0,0.00027397,7]
[335148110,1723890725013,-151.0,0.00027397,7]
[335148111,1723890725023,-151.0,0.00027397,7]
[335148112,1723890725032,-151.0,0.00027397,7]
[335148113,1723890725042,-151.0,0.00027397,7]
[335148114,1723890725053,-151.0,0.00027397,7]
[335148115,1723890725062,-151.0,0.00027397,7]
[335148116,1723890725074,-151.0,0.00027397,7]
[335148117,1723890725084,-151.0,0.00027397,7]
[335148118,1723890725093,-151.0,0.00027397,7]
[335148119,1723890725103,-151.0,0.00027397,7]
[335148120,1723890725113,-151.0,0.00027397,7]
[335148121,1723890725135,-151.0,0.00027397,7]
[335148122,1723890725152,-151.0,0.00027397,7]
[335148123,1723890725176,-154.353007,0.00027397,7]
[335148124,1723890725198,-306.0,0.00027397,2]
[335148125,1723890725218,-511.9126545,0.00027397,2]
[335148126,1723890725236,-500.0,0.00027664,2]
[335148127,1723890725253,-500.0,0.00027664,2]
[335148128,1723890725271,-500.0,0.00027664,2]
[335148129,1723890725291,-500.0,0.00027664,2]
[335148130,1723890725312,-500.0,0.00027664,2]
[335148131,1723890725326,-500.0,0.00027664,2]
[335148132,1723890725344,-500.0,0.00027664,2]
[335148133,1723890725363,-500.0,0.00027664,2]
[335148134,1723890725381,-500.0,0.00027664,2]
[335148135,1723890725396,-500.0,0.00027664,2]
[335148136,1723890725413,-500.0,0.00027664,2]
[335148137,1723890725429,-500.0,0.00027664,2]
[335148138,1723890725444,-500.0,0.00027664,2]
[335148139,1723890725460,-500.0,0.00027664,2]
[335148140,1723890725477,-500.0,0.00027664,2]
[335148141,1723890725494,-500.0,0.00027664,2]
[335148142,1723890725509,-151.0,0.00027664,7]
[335148143,1723890725527,-500.0,0.00027664,2]
[335148144,1723890725542,-500.0,0.00027664,2]
[335148145,1723890725557,-500.0,0.00027664,2]
[335148146,1723890725573,-500.0,0.00027664,2]
[335148147,1723890725590,-500.0,0.00027664,2]
[335148148,1723890725606,-500.0,0.00027664,2]
[335148149,1723890725620,-500.0,0.00027664,2]
[335148150,1723890725636,-500.0,0.00027664,2]
[335148151,1723890725651,-500.0,0.00027664,2]
[335148152,1723890725666,-500.0,0.00027664,2]
[335148153,1723890725682,-500.0,0.00027664,2]
[335148154,1723890725699,-500.0,0.00027664,2]
[335148155,1723890725714,-500.0,0.00027664,2]
[335148156,1723890725730,-501.54,0.00027664,2]
[335148157,1723890725746,-500.0,0.00027664,2]
[335148158,1723890725761,-500.0,0.00027664,2]
[335148159,1723890725776,-500.0,0.00027664,2]
[335148160,1723890725790,-500.0,0.00027664,2]
[335148161,1723890725806,-151.0,0.00027664,7]
[335148162,1723890725823,-188.64763365,0.00027664,2]
[335148163,1723890725838,-591.49417812,0.00027664,2]
[335148164,1723890725852,-500.0,0.00027664,2]
[335148165,1723890725867,-500.0,0.00027664,2]
[335148166,1723890725881,-1683.39,0.00027664,2]
[335148167,1723890725896,-500.0,0.00027664,2]
[335148168,1723890725912,-500.0,0.00027664,2]
[335148169,1723890725927,-500.0,0.00027664,2]
[335148170,1723890725943,-500.0,0.00027664,2]
[335148171,1723890725959,-500.0,0.00027664,2]
[335148172,1723890725975,-500.0,0.00027664,2]
[335148173,1723890725991,-500.0,0.00027664,2]
[335148174,1723890726008,-500.0,0.00027664,2]
[335148175,1723890726023,-342.60729032,0.00027664,2]
[335148176,1723890726041,-500.0,0.00027664,2]
[335148177,1723890726058,-500.0,0.00027664,2]
[335148178,1723890726077,-500.0,0.00027664,2]
[335148179,1723890726092,-500.0,0.00027664,2]
[335148180,1723890726108,-500.0,0.00027664,2]
[335148181,1723890726122,-500.0,0.00027664,2]
[335148182,1723890726137,-500.0,0.00027664,2]
[335148183,1723890726155,-500.0,0.00027664,2]
[335148184,1723890726169,-500.0,0.00027664,2]
[335148185,1723890726185,-500.0,0.00027664,2]
[335148186,1723890726203,-500.0,0.00027664,2]
[335148187,1723890726219,-250.4936999,0.00027664,2]
[335148188,1723890726235,-500.0,0.00027664,2]
[335148189,1723890726251,-500.0,0.00027664,2]
[335148190,1723890726267,-500.0,0.00027664,2]
[335148191,1723890726283,-500.0,0.00027664,2]
[335148192,1723890726299,-500.0,0.00027664,2]
[335148193,1723890726317,-500.0,0.00027664,2]
[335148194,1723890726334,-502.54849087,0.00027664,2]
[335148195,1723890726348,-500.0,0.00027664,2]
[335148196,1723890726363,-500.0,0.00027664,2]
[335148197,1723890726379,-500.0,0.00027664,2]
[335148198,1723890726394,-500.0,0.00027664,2]
[335148199,1723890726410,-500.0,0.00027664,2]
[335148200,1723890726434,-500.0,0.00027664,2]
[335148201,1723890726455,-500.0,0.00027664,2]
[335148202,1723890726472,-500.0,0.00027664,2]
[335148203,1723890726486,-500.0,0.00027664,2]
[335148204,1723890726501,-500.0,0.00027664,2]
[335148205,1723890726516,-500.0,0.00027664,2]
[335148206,1723890726533,-500.0,0.00027664,2]
[335148207,1723890726547,-500.0,0.00027664,2]
[335148208,1723890726712,-500.0,0.00027664,2]
[335148209,1723890726749,-500.0,0.00027664,2]
[335148210,1723890726759,-500.0,0.00027664,2]
[335148211,1723890726770,-500.0,0.00027664,2]
[335148212,1723890726782,-547.89,0.00027664,2]
[335148213,1723890726792,-500.0,0.00027664,2]
[335148214,1723890726803,-500.0,0.00027664,2]
[335148215,1723890726814,-500.0,0.00027664,2]
[335148216,1723890726825,-500.0,0.00027664,2]
[335148217,1723890726837,-500.0,0.00027664,2]
[335148218,1723890726848,-500.0,0.00027664,2]
[335148219,1723890726860,-500.0,0.00027664,2]
[335148220,1723890726872,-500.0,0.00027664,2]
[335148221,1723890726883,-539.57503101,0.00027664,2]
[335148222,1723890726894,-500.0,0.00027664,2]
[335148223,1723890726903,-500.0,0.00027664,2]
[335148224,1723890726912,-500.0,0.00027664,2]
[335148225,1723890726922,-504.34105417,0.00027664,2]
[335148226,1723890726931,-500.0,0.00027664,2]
[335148227,1723890726941,-765.7,0.00027664,2]
[335148228,1723890726951,-500.0,0.00027664,2]
[335148229,1723890726960,-405.85565037,0.00027664,2]
[335148230,1723890726970,-500.0,0.00027664,2]
[335148231,1723890726979,-500.0,0.00027664,2]
[335148232,1723890726989,-500.0,0.00027664,2]
[335148233,1723890726999,-500.0,0.00027664,2]
[335148234,1723890727008,-500.0,0.00027664,2]
[335148235,1723890727018,-500.0,0.00027664,2]
[335148236,1723890727028,-500.0,0.00027664,2]
[335148237,1723890727037,-633.9,0.00027664,2]
[335148238,1723890727046,-410.65788233,0.00027664,2]
[335148239,1723890727057,-500.0,0.00027664,2]
[335148240,1723890727071,-500.0,0.00027664,2]
[335148241,1723890727081,-500.0,0.00027664,2]
[335148242,1723890727091,-500.0,0.00027664,2]
[335148243,1723890727100,-500.0,0.00027664,2]
[335148244,1723890727109,-500.0,0.00027664,2]
[335148245,1723890727118,-500.0,0.00027664,2]
[335148246,1723890727127,-500.0,0.00027664,2]
[335148247,1723890727137,-521.11,0.00027664,2]
[335148248,1723890727147,-500.0,0.00027664,2]
[335148249,1723890727156,-500.0,0.00027664,2]
[335148250,1723890727166,-500.0,0.00027664,2]
[335148251,1723890727175,-500.0,0.00027664,2]
[335148252,1723890727184,-500.0,0.00027664,2]
[335148253,1723890727193,-500.0,0.00027664,2]
[335148254,1723890727202,-775.16,0.00027664,2]
[335148255,1723890727212,-500.0,0.00027664,2]
[335148256,1723890727229,-571.1,0.00027664,2]
[335148257,1723890727238,-357.72871302,0.00027664,2]
[335148258,1723890727248,-500.0,0.00027664,2]
[335148259,1723890727258,-516.10442886,0.00027664,2]
[335148260,1723890727267,-668.62,0.00027664,2]
[335148261,1723890727277,-500.0,0.00027664,2]
[335148262,1723890727287,-500.0,0.00027664,2]
[335148263,1723890727298,-500.0,0.00027664,2]
[335148264,1723890727308,-500.0,0.00027664,2]
[335148265,1723890727318,-731.12,0.00027664,2]
[335148266,1723890727327,-500.0,0.00027664,2]
[335148267,1723890727337,-632.17,0.00027664,2]
[335148268,1723890727347,-500.0,0.00027664,2]
[335148269,1723890727356,-516.36021606,0.00027664,2]
[335148270,1723890727366,-593.02,0.00027664,2]
[335148271,1723890727375,-516.4906629,0.00027664,2]
[335148272,1723890727385,-656.84,0.00027664,2]
[335148273,1723890727395,-500.0,0.00027664,2]
[335148274,1723890727405,-633.28,0.00027664,2]
[335148275,1723890727415,-500.0,0.00027664,2]
[335148276,1723890727424,-500.0,0.00027664,2]
[335148277,1723890727434,-500.0,0.00027664,2]
[335148278,1723890727444,-521.1,0.00027664,2]
[335148279,1723890727454,-500.0,0.00027664,2]
[335148280,1723890727464,-500.0,0.00027664,2]
[335148281,1723890727474,-500.0,0.00027664,2]
[335148282,1723890727484,-500.0,0.00027664,2]
[335148283,1723890727494,-500.0,0.00027664,2]
[335148284,1723890727504,-500.0,0.00027664,2]
[335148285,1723890727513,-500.0,0.00027664,2]
[335148286,1723890727524,-500.0,0.00027664,2]
[335148287,1723890727533,-500.0,0.00027664,2]
[335148288,1723890727542,-500.0,0.00027664,2]
[335148289,1723890727552,-500.0,0.00027664,2]
[335148290,1723890727561,-764.51,0.00027664,2]
[335148291,1723890727570,-500.0,0.00027664,2]
[335148292,1723890727580,-500.0,0.00027664,2]
[335148293,1723890727590,-500.0,0.00027664,2]
[335148294,1723890727600,-500.0,0.00027664,2]
[335148295,1723890727610,-625.26,0.00027664,2]
[335148296,1723890727620,-500.0,0.00027664,2]
[335148297,1723890727630,-625.29,0.00027664,2]
[335148298,1723890727639,-500.0,0.00027664,2]
[335148299,1723890727649,-500.0,0.00027664,2]
[335148300,1723890727659,-500.0,0.00027664,2]
[335148301,1723890727669,-500.0,0.00027664,2]
[335148302,1723890727678,-511.84544462,0.00027664,2]
[335148303,1723890727688,-1302.46,0.0002767,2]
[335148304,1723890727698,-3815.52,0.0002767,2]
[335148305,1723890727708,-1463.19,0.0002767,2]
[335148306,1723890727719,-1313.81,0.0002767,2]
[335148307,1723890727729,-557.32,0.0002767,2]
[335148308,1723890727739,-4587.93,0.0002767,2]
[335148309,1723890727749,-1281.48,0.0002767,2]
[335148310,1723890727761,-1296.99,0.0002767,2]
[335148311,1723890727771,-1380.37,0.0002767,2]
[335148312,1723890727782,-500.0,0.0002767,2]
[335148313,1723890727792,-3297.99,0.0002767,2]
[335148314,1723890727802,-2369.1,0.0002767,2]
[335148315,1723890727813,-3259.07,0.0002767,2]
[335148316,1723890727824,-2059.73,0.0002767,2]
[335148317,1723890727834,-558.53,0.0002767,2]
[335148318,1723890727844,-1089.27,0.0002767,2]
[335148319,1723890727853,-4118.73,0.0002767,2]
[335148320,1723890727863,-537.86,0.0002767,2]
[335148321,1723890727872,-500.0,0.0002767,2]
[335148322,1723890727882,-503.22240658,0.00027671,2]
[335148323,1723890727893,-500.0,0.00027671,2]
[335148324,1723890727902,-151.0,0.00027671,7]
[335148325,1723890727912,-151.0,0.00027671,7]
[335148326,1723890727921,-151.0,0.00027671,7]
[335148327,1723890727931,-151.0,0.00027671,7]
[335148328,1723890727941,-500.0,0.00027671,2]
[335148329,1723890727950,-151.0,0.00027671,7]
[335148330,1723890727960,-151.0,0.00027671,7]
[335148331,1723890727970,-500.0,0.00027671,2]
[335148332,1723890727979,-500.0,0.00027671,2]
[335148333,1723890727988,-500.0,0.00027671,2]
[335148334,1723890727998,-542.28723116,0.00027671,2]
[335148335,1723890728008,-500.0,0.00027671,2]
[335148336,1723890728019,-500.0,0.00027671,2]
[335148337,1723890728030,-500.0,0.00027671,2]
[335148338,1723890728040,-500.0,0.00027671,2]
[335148339,1723890728051,-500.0,0.00027671,2]
[335148340,1723890728061,-500.0,0.00027671,2]
[335148341,1723890728074,-500.0,0.00027671,2]
[335148342,1723890728086,-500.0,0.00027671,2]
[335148343,1723890728096,-509.46976076,0.00027671,2]
[335148344,1723890728107,-633.30643117,0.00027671,2]
[335148345,1723890728118,-259.98056869,0.00027671,2]
[335148346,1723890728129,-500.0,0.00027671,2]
[335148347,1723890728141,-500.0,0.00027671,2]
[335148348,1723890728153,-500.0,0.00027671,2]
[335148349,1723890728163,-500.0,0.00027671,2]
[335148350,1723890728173,-500.0,0.00027671,2]
[335148351,1723890728182,-551.01474305,0.00027671,2]
[335148352,1723890728193,-500.0,0.00027671,2]
[335148353,1723890728202,-500.0,0.00027671,2]
[335148354,1723890728212,-538.93126061,0.00027671,2]
[335148355,1723890728224,-500.0,0.00027671,2]
[335148356,1723890728234,-500.0,0.00027671,2]
[335148357,1723890728244,-500.0,0.00027671,2]
[335148358,1723890728253,-500.0,0.00027671,2]
[335148359,1723890728262,-500.0,0.00027671,2]
[335148360,1723890728272,-500.0,0.00027671,2]
[335148361,1723890728282,-500.0,0.00027671,2]
[335148362,1723890728291,-516.32103639,0.00027671,2]
[335148363,1723890728301,-500.0,0.00027671,2]
[335148364,1723890728312,-523.67983,0.00027671,2]
[335148365,1723890728324,-500.0,0.00027671,2]
[335148366,1723890728334,-500.0,0.00027671,2]
[335148367,1723890728344,-500.0,0.00027671,2]
[335148368,1723890728355,-500.0,0.00027671,2]
[335148369,1723890728365,-561.21,0.00027671,2]
[335148370,1723890728377,-500.0,0.00027671,2]
[335148371,1723890728387,-500.0,0.00027671,2]
[335148372,1723890728399,-500.0,0.00027671,2]
[335148373,1723890728410,-500.0,0.00027671,2]
[335148374,1723890728420,-500.0,0.00027671,2]
[335148375,1723890728431,-500.0,0.00027671,2]
[335148376,1723890728443,-500.0,0.00027671,2]
[335148377,1723890728453,-500.0,0.00027671,2]
[335148378,1723890728464,-500.0,0.00027671,2]
[335148379,1723890728474,-500.0,0.00027671,2]
[335148380,1723890728484,-510.02446806,0.00027671,2]
[335148381,1723890728495,-203.61667602,0.00027671,2]
[335148382,1723890728504,-500.0,0.00027671,2]
[335148383,1723890728514,-500.0,0.00027671,2]
[335148384,1723890728525,-500.0,0.00027671,2]
[335148385,1723890728535,-500.0,0.00027671,2]
[335148386,1723890728546,-500.0,0.00027671,2]
[335148387,1723890728558,-528.52112947,0.00027671,2]
[335148388,1723890728568,-500.0,0.00027671,2]
[335148389,1723890728578,-500.0,0.00027671,2]
[335148390,1723890728588,-500.0,0.00027671,2]
[335148391,1723890728599,-640.23436606,0.00027671,2]
[335148392,1723890728609,-151.0,0.00027671,5]
[335148393,1723890728620,-575.75,0.00027671,2]
[335148394,1723890728632,-678.901847,0.00027671,7]
[335148395,1723890728642,-151.0,0.00027671,7]
[335148396,1723890728653,-678.901847,0.00027671,7]
[335148397,1723890728665,-528.48,0.00027671,2]
[335148398,1723890728675,-151.0,0.00027671,7]
[335148399,1723890728686,-500.0,0.00027671,2]
[335148400,1723890728697,-271.364326,0.00027671,7]
[335148401,1723890728707,-271.364326,0.00027671,7]
[335148402,1723890728719,-500.0,0.00027671,2]
[335148403,1723890728731,-885.91,0.00027671,2]
[335148404,1723890728742,-501.433027,0.00027671,2]
[335148405,1723890728755,-501.433027,0.00027671,2]
[335148406,1723890728766,-501.433027,0.00027671,2]
[335148407,1723890728776,-501.433027,0.00027671,2]
[335148408,1723890728786,-642.6,0.00027671,2]
[335148409,1723890728796,-529.2,0.00027671,2]
[335148410,1723890728805,-3128.21,0.00027671,2]
[335148411,1723890728814,-500.55,0.00027671,2]
[335148412,1723890728823,-803.858624,0.00027671,7]
[335148413,1723890728833,-803.858624,0.00027671,7]
[335148414,1723890728843,-1197.09,0.00027671,2]
[335148415,1723890728853,-663.25,0.00027671,2]
[335148416,1723890728862,-553.57,0.00027671,2]
[335148417,1723890728871,-833.32,0.00027671,2]
[335148418,1723890728881,-593.58,0.00027671,2]
[335148419,1723890728890,-635.22,0.00027671,2]
[335148420,1723890728900,-1678.22,0.00027671,2]
[335148421,1723890729015,-523.73,0.00027671,2]
[335148422,1723890729037,-164.727457,0.00027671,7]
[335148423,1723890729047,-164.727457,0.00027671,7]
[335148424,1723890729056,-500.0,0.00027671,2]
[335148425,1723890729069,-929.06,0.00027671,2]
[335148426,1723890729079,-500.0,0.00027671,2]
[335148427,1723890729089,-240.041279,0.00027671,7]
[335148428,1723890729099,-518.3864646,0.00027671,2]
[335148429,1723890729110,-240.041279,0.00027671,7]
[335148430,1723890729119,-5055.53,0.00027671,2]
[335148431,1723890729129,-356.014522,0.00027671,7]
[335148432,1723890729139,-541.368268,0.00027671,7]
[335148433,1723890729150,-726.16,0.00027671,2]
[335148434,1723890729160,-356.014522,0.00027671,7]
[335148435,1723890729169,-541.368268,0.00027671,7]
[335148436,1723890729179,-442.175006,0.00027671,7]
[335148437,1723890729189,-442.175006,0.00027671,7]
[335148438,1723890729199,-651.69,0.00027671,2]
[335148439,1723890729209,-1917.36,0.00027671,2]
[335148440,1723890729219,-500.0,0.00027671,2]
[335148441,1723890729229,-610.5922932,0.00027671,2]
[335148442,1723890729239,-785.84,0.00027671,2]
[335148443,1723890729249,-3882.025632,0.00027671,7]
[335148444,1723890729258,-3882.025632,0.00027671,7]
[335148445,1723890729268,-542.57,0.00027671,2]
[335148446,1723890729278,-501.64,0.00027671,2]
[335148447,1723890729287,-1010.89,0.00027671,2]
[335148448,1723890729297,-530.09,0.00027671,2]
[335148449,1723890729307,-605.21,0.00027671,2]
[335148450,1723890729317,-751.83,0.00027671,2]
[335148451,1723890729326,-506.09466725,0.00027671,2]
[335148452,1723890729336,-1556.4,0.00027671,2]
[335148453,1723890729345,-500.23,0.00027671,2]
[335148454,1723890729355,-752.59,0.00027671,2]
[335148455,1723890729365,-611.43,0.00027671,2]
[335148456,1723890729375,-500.0,0.00027671,2]
[335148457,1723890729385,-668.57,0.00027671,2]
[335148458,1723890729394,-842.04,0.00027671,2]
[335148459,1723890729403,-794.65,0.00027671,2]
[335148460,1723890729413,-500.0,0.00027671,2]
[335148461,1723890729423,-533.77,0.00027671,2]
[335148462,1723890729433,-545.57,0.00027671,2]
[335148463,1723890729443,-588.4,0.00027671,2]
[335148464,1723890729452,-618.32,0.00027671,2]
[335148465,1723890729462,-500.28,0.00027671,2]
[335148466,1723890729473,-885.0,0.00027671,2]
[335148467,1723890729482,-864.62,0.00027671,2]
[335148468,1723890729491,-514.86,0.00027671,2]
[335148469,1723890729502,-553.37,0.00027671,2]
[335148470,1723890729511,-619.18,0.00027671,2]
[335148471,1723890729521,-693.53,0.00027671,2]
[335148472,1723890729531,-1400.99,0.00027671,2]
[335148473,1723890729540,-1038.37,0.00027671,2]
[335148474,1723890729549,-1018.27,0.00027671,2]
[335148475,1723890729559,-517.68,0.00027671,2]
[335148476,1723890729569,-530.93,0.00027671,2]
[335148477,1723890729578,-655.89,0.00027671,2]
[335148478,1723890729588,-591.89,0.00027671,2]
[335148479,1723890729598,-500.0,0.00027671,2]
[335148480,1723890729608,-1232.8,0.00027671,2]
[335148481,1723890729617,-500.0,0.00027671,2]
[335148482,1723890729626,-543.94,0.00027671,2]
[335148483,1723890729637,-571.25,0.00027671,2]
[335148484,1723890729646,-503.76,0.00027671,2]
[335148485,1723890729656,-725.37,0.00027671,2]
[335148486,1723890729665,-582.58,0.00027671,2]
[335148487,1723890729675,-739.32,0.00027671,2]
[335148488,1723890729684,-1438.68,0.00027671,2]
[335148489,1723890729694,-769.77,0.00027671,2]
[335148490,1723890729704,-2248.55,0.00027671,2]
[335148491,1723890729714,-657.64,0.00027671,2]
[335148492,1723890729724,-590.2,0.00027671,2]
[335148493,1723890729734,-788.03,0.00027671,2]
[335148494,1723890729744,-2904.2,0.00027671,2]
[335148495,1723890729755,-500.0,0.00027671,2]
[335148496,1723890729766,-737.6,0.00027671,2]
[335148497,1723890729776,-1067.82,0.00027671,2]
[335148498,1723890729785,-22187.11,0.00027671,2]
[335148499,1723890729796,-6948.85,0.00027671,2]
[335148500,1723890729806,-668.08,0.00027671,2]
[335148501,1723890729817,-1369.92,0.00027671,2]
[335148502,1723890729828,-1067.8,0.00027671,2]
[335148503,1723890729838,-2952.04,0.00027671,2]
[335148504,1723890729848,-1761.64,0.00027671,2]
[335148505,1723890729858,-1088.19,0.00027671,2]
[335148506,1723890729870,-1664.5,0.00027671,2]
[335148507,1723890729882,-616.8,0.00027671,2]
[335148508,1723890729893,-869.36,0.00027671,2]
[335148509,1723890729905,-1108.77,0.00027671,2]
[335148510,1723890729916,-905.39,0.00027671,2]
[335148511,1723890729927,-2520.02,0.00027671,2]
[335148512,1723890729939,-569.78,0.00027671,2]
[335148513,1723890729952,-3853.14,0.00027671,2]
[335148514,1723890729962,-2333.05,0.00027671,2]
[335148515,1723890729973,-679.93,0.00027671,2]
[335148516,1723890729983,-521.59,0.00027671,2]
[335148517,1723890729993,-2770.69,0.00027671,2]
[335148518,1723890730004,-692.79,0.00027671,2]
[335148519,1723890730015,-500.28,0.00027671,2]
[335148520,1723890730026,-1389.6,0.00027671,2]
[335148521,1723890730037,-4570.81,0.00027671,2]
[335148522,1723890730048,-1322.18,0.000277,14]
[335148523,1723890730061,-500.0,0.00027938,2]
[335148524,1723890730073,-500.0,0.00027938,2]
[335148525,1723890730083,-500.0,0.00027938,2]
[335148526,1723890730095,-500.0,0.00027938,2]
[335148527,1723890730106,-500.0,0.00027938,2]
[335148528,1723890730116,-500.0,0.00027938,2]
[335148529,1723890730129,-500.0,0.00027938,2]
[335148530,1723890730140,-500.0,0.00027938,2]
[335148531,1723890730152,-500.0,0.00027938,2]
[335148532,1723890730164,-500.0,0.00027938,2]
[335148533,1723890730173,-500.0,0.00027938,2]
[335148534,1723890730183,-261.05870594,0.00027938,2]
[335148535,1723890730194,-500.0,0.00027938,2]
[335148536,1723890730204,-500.0,0.00027938,2]
[335148537,1723890730216,-430.44188644,0.00027938,2]
[335148538,1723890730226,-500.0,0.00027938,2]
[335148539,1723890730237,-500.0,0.00027938,2]
[335148540,1723890730249,-169.27073828,0.00027938,2]
[335148541,1723890730259,-500.0,0.00027938,2]
[335148542,1723890730271,-380.44301361,0.00027938,2]
[335148543,1723890730285,-500.0,0.00027938,2]
[335148544,1723890730296,-500.0,0.00027938,2]
[335148545,1723890730306,-500.0,0.00027938,2]
[335148546,1723890730316,-500.0,0.00027938,2]
[335148547,1723890730325,-500.0,0.00027938,2]
[335148548,1723890730334,-500.0,0.00027938,2]
[335148549,1723890730344,-500.0,0.00027938,2]
[335148550,1723890730353,-500.0,0.00027938,2]
[335148551,1723890730362,-500.0,0.00027938,2]
[335148552,1723890730371,-501.54,0.00027938,2]
[335148553,1723890730381,-500.0,0.00027938,2]
[335148554,1723890730391,-500.0,0.00027938,2]
[335148555,1723890730400,-500.0,0.00027938,2]
[335148556,1723890730410,-500.0,0.00027938,2]
[335148557,1723890730419,-500.0,0.00027938,2]
[335148558,1723890730429,-500.0,0.00027938,2]
[335148559,1723890730438,-1683.39,0.00027938,2]
[335148560,1723890730448,-500.0,0.00027938,2]
[335148561,1723890730458,-500.0,0.00027938,2]
[335148562,1723890730468,-500.0,0.00027938,2]
[335148563,1723890730478,-500.0,0.00027938,2]
[335148564,1723890730489,-211.03913801,0.00027938,2]
[335148565,1723890730498,-500.0,0.00027938,2]
[335148566,1723890730508,-500.0,0.00027938,2]
[335148567,1723890730518,-500.0,0.00027938,2]
[335148568,1723890730528,-500.0,0.00027938,2]
[335148569,1723890730540,-500.0,0.00027938,2]
[335148570,1723890730551,-500.0,0.00027938,2]
[335148571,1723890730562,-500.0,0.00027938,2]
[335148572,1723890730574,-500.0,0.00027938,2]
[335148573,1723890730585,-500.0,0.00027938,2]
[335148574,1723890730596,-500.0,0.00027938,2]
[335148575,1723890730605,-500.0,0.00027938,2]
[335148576,1723890730615,-500.0,0.00027938,2]
[335148577,1723890730625,-500.0,0.00027938,2]
[335148578,1723890730634,-500.0,0.00027938,2]
[335148579,1723890730644,-500.0,0.00027938,2]
[335148580,1723890730654,-500.0,0.00027938,2]
[335148581,1723890730664,-500.0,0.00027938,2]
[335148582,1723890730674,-500.0,0.00027938,2]
[335148583,1723890730684,-803.858624,0.00027938,7]
[335148584,1723890730694,-500.0,0.00027938,2]
[335148585,1723890730705,-803.858624,0.00027938,7]
[335148586,1723890730715,-596.5,0.00027938,2]
[335148587,1723890730725,-500.0,0.00027938,2]
[335148588,1723890730735,-500.0,0.00027938,2]
[335148589,1723890730746,-500.0,0.00027938,2]
[335148590,1723890730757,-238.25438235,0.00027938,2]
[335148591,1723890730768,-500.0,0.00027938,2]
[335148592,1723890730779,-500.0,0.00027938,2]
[335148593,1723890730790,-500.0,0.00027938,2]
[335148594,1723890730801,-500.0,0.00027938,2]
[335148595,1723890730812,-500.0,0.00027938,2]
[335148596,1723890730824,-500.0,0.00027938,2]
[335148597,1723890730834,-500.0,0.00027938,2]